bitfinex/quotes_SOLUSD_20260309
["timestamp","ask_amount","ask_price","bid_price","bid_amount"]
[1773017258572,12.11842121,82.519,82.5,0.05087155]
[1773017258975,12.08241953,82.52,82.5,0.05087155]
[1773017259592,7.39450812,82.553,82.475,1.22838887]
[1773017259593,12.08241953,82.51,82.475,1.22838887]
[1773017259793,12.08241953,82.5,82.482,12.12382852]
[1773017260795,12.08241953,82.52,82.491,12.12253457]
[1773017260976,12.08241953,82.51,82.491,12.12253457]
[1773017262683,12.08241953,82.51,82.492,1.22838887]
[1773017262894,12.08241953,82.53,82.492,1.22838887]
[1773017263499,12.08241953,82.5,82.49,1e-08]
[1773017263676,12.08241953,82.52,82.491,1.22838887]
[1773017264396,12.08241953,82.53,82.491,1.22838887]
[1773017264896,12.11695282,82.529,82.493,1.22838887]
[1773017265495,12.13700766,82.529,82.493,1.22838887]
[1773017265895,12.08241953,82.53,82.493,1.22838887]
[1773017266292,0.759,82.537,82.493,1.51271201]
[1773017266596,0.759,82.537,82.495,1.51271201]
[1773017267300,0.759,82.537,82.497,1.22838887]
[1773017268816,12.08241953,82.53,82.497,1.22838887]
[1773017268982,0.02420588,82.535,82.497,1.22838887]
[1773017269386,0.02420588,82.529,82.499,1.22838887]
[1773017269682,0.02420588,82.529,82.49,1e-08]
[1773017269683,12.08241953,82.51,82.49,1e-08]
[1773017269892,0.02522046,82.519,82.491,12.12253457]
[1773017270095,0.02522046,82.519,82.491,42.42887101]
[1773017270602,12.08241953,82.52,82.492,1.22838887]
[1773017272503,43.16436418,82.537,82.49,1e-08]
[1773017272504,12.08241953,82.51,82.49,1e-08]
[1773017272999,0.02967567,82.528,82.492,1.22838887]
[1773017273198,12.08241953,82.53,82.492,1.22838887]
[1773017273397,0.02967567,82.529,82.492,1.22838887]
[1773017273604,0.03062567,82.529,82.492,1.22838887]
[1773017274007,12.08241953,82.52,82.492,1.22838887]
[1773017275211,0.03062567,82.529,82.494,1.22838887]
[1773017276096,12.08241953,82.52,82.494,1.22838887]
[1773017277184,42.4057381,82.536,82.49,1e-08]
[1773017277185,0.03490857,82.509,82.49,1e-08]
[1773017278113,12.08241953,82.52,82.49,1e-08]
[1773017280026,12.08241953,82.53,82.49,1e-08]
[1773017280908,0.79654434,82.537,82.49,1e-08]
[1773017281115,0.759,82.537,82.49,1e-08]
[1773017281622,0.03694113,82.519,82.49,1e-08]
[1773017282205,12.15512428,82.527,82.49,1e-08]
[1773017282405,12.08241953,82.52,82.49,1e-08]
[1773017282606,12.15512428,82.527,82.49,1e-08]
[1773017282814,12.08241953,82.53,82.49,1e-08]
[1773017284431,12.08241953,82.51,82.49,1e-08]
[1773017285226,0.04263989,82.509,82.49,1e-08]
[1773017285627,12.08241953,82.5,82.49,1e-08]
[1773017287029,12.08241953,82.51,82.49,1e-08]
[1773017288203,12.08241953,82.53,82.49,1e-08]
[1773017288623,0.28432314,82.554,82.49,1e-08]
[1773017288624,12.08241953,82.54,82.49,1e-08]
[1773017289002,12.1304675,82.53,82.49,1e-08]
[1773017290615,0.04951666,82.528,82.49,1e-08]
[1773017291530,12.13193619,82.52,82.49,1e-08]
[1773017292027,0.04908032,82.519,82.49,1e-08]
[1773017292406,0.04908032,82.509,82.49,1e-08]
[1773017293425,0.04864851,82.519,82.49,1e-08]
[1773017293726,0.04864851,82.509,82.49,1e-08]
[1773017294023,0.04822675,82.502,82.49,1e-08]
[1773017295024,12.13023052,82.51,82.49,1e-08]
[1773017295206,12.08241953,82.51,82.49,1e-08]
[1773017295616,4.51507765,82.51,82.49,1e-08]
[1773017296020,0.04741734,82.509,82.49,1e-08]
[1773017296810,4.51507765,82.51,82.49,1e-08]
[1773017297521,4.51507765,82.53,82.49,1e-08]
[1773017297935,12.11695282,82.529,82.49,1e-08]
[1773017298226,4.51507765,82.52,82.49,1e-08]
[1773017299326,12.11621877,82.534,82.49,1e-08]
[1773017299523,4.51507765,82.53,82.49,1e-08]
[1773017300515,0.04621175,82.539,82.49,1e-08]
[1773017300726,12.16181803,82.539,82.49,1e-08]
[1773017300921,12.89007721,82.535,82.49,1e-08]
[1773017301627,12.08683048,82.53,82.49,1e-08]
[1773017302832,12.93510949,82.535,82.49,1e-08]
[1773017304335,0.04427787,82.534,82.491,1.51271201]
[1773017305530,0.04390586,82.554,82.494,6.05316456]
[1773017305734,12.08683048,82.56,82.493,3.97815716]
[1773017305735,12.08001297,82.57,82.507,6.05316456]
[1773017306030,12.08001297,82.57,82.515,1.22838887]
[1773017306426,12.10976289,82.578,82.525,1.51271201]
[1773017307529,0.04316377,82.577,82.525,1.51271201]
[1773017308322,0.04316377,82.577,82.526,42.41087656]
[1773017308518,0.04316377,82.577,82.527,1.22838887]
[1773017310834,0.04316377,82.577,82.529,1.22838887]
[1773017311038,0.04316377,82.577,82.535,1.22838887]
[1773017312627,19.56198022,82.579,82.537,1.22838887]
[1773017312827,7.45224574,82.579,82.537,1.22838887]
[1773017313153,0.04082767,82.578,82.537,1.22838887]
[1773017313526,7.45224574,82.579,82.537,1.22838887]
[1773017314136,7.45224574,82.579,82.536,102.98536396]
[1773017314137,7.45224574,82.579,82.539,1.51328319]
[1773017315450,0.04013683,82.609,82.549,4.82477569]
[1773017315653,0.04013683,82.609,82.547,3.69383402]
[1773017315654,0.04013683,82.609,82.555,1.22896005]
[1773017315858,0.2,82.62,82.558,1.22896005]
[1773017316031,0.03980091,82.609,82.562,1.51328319]
[1773017316230,0.2,82.62,82.567,1.22896005]
[1773017316429,0.2,82.62,82.575,1.51328319]
[1773017316632,0.03980091,82.619,82.575,1.51328319]
[1773017317242,0.2,82.62,82.575,1.51328319]
[1773017317424,0.2,82.62,82.579,1.22896005]
[1773017317923,1e-08,82.62,82.584,1.22896005]
[1773017318135,1e-08,82.62,82.587,1.22896005]
[1773017320347,1e-08,82.62,82.589,1.51328319]
[1773017320945,0.0382016,82.619,82.566,1.51328319]
[1773017321130,0.0382016,82.619,82.566,1.22896005]
[1773017321742,12.08001297,82.61,82.566,1.51328319]
[1773017322048,12.08001297,82.6,82.566,1.22896005]
[1773017322243,12.08001297,82.6,82.5,104.9]
[1773017322244,0.03934128,82.589,82.557,1.22896005]
[1773017322436,0.03934128,82.588,82.558,12.11269652]
[1773017322750,0.03934128,82.588,82.536,4.82477569]
[1773017322751,12.08001297,82.57,82.49,1e-08]
[1773017322954,0.03762167,82.559,82.493,1.22896005]
[1773017323150,42.37852497,82.589,82.502,1.22896005]
[1773017323151,0.03762167,82.578,82.502,1.22896005]
[1773017323342,0.03762167,82.578,82.525,1.22896005]
[1773017323546,0.03762167,82.569,82.525,1.22896005]
[1773017324434,0.03731753,82.568,82.526,13.34635335]
[1773017324750,12.11108285,82.569,82.527,1.22896005]
[1773017324751,0.03701673,82.559,82.527,1.22896005]
[1773017325356,12.11108285,82.569,82.527,1.22896005]
[1773017325974,0.03671544,82.577,82.527,1.22896005]
[1773017326665,0.03671544,82.577,82.529,1.22896005]
[1773017326833,12.08001297,82.57,82.529,1.22896005]
[1773017327253,12.08001297,82.58,82.529,1.51328319]
[1773017327553,12.08001297,82.57,82.529,1.22896005]
[1773017327753,0.03616516,82.569,82.529,1.22896005]
[1773017328843,12.14724801,82.569,82.53,12.116806]
[1773017329047,12.14724801,82.569,82.531,1.22896005]
[1773017329347,12.11588682,82.58,82.531,1.51328319]
[1773017329543,0.03587385,82.58,82.531,1.51328319]
[1773017330256,0.28432314,82.604,82.531,1.51328319]
[1773017330257,0.03556866,82.606,82.544,1.22896005]
[1773017330644,12.08001297,82.6,82.544,1.22896005]
[1773017330844,0.03526497,82.595,82.547,1.22896005]
[1773017331251,12.08001297,82.6,82.547,1.22896005]
[1773017331957,24.18655895,82.6,82.547,1.22896005]
[1773017332754,12.08001297,82.6,82.547,1.22896005]
[1773017333053,0.03526497,82.604,82.554,4.82477569]
[1773017333257,0.03526497,82.604,82.555,1.22896005]
[1773017334548,12.14132663,82.604,82.555,1.51328319]
[1773017336863,12.14132663,82.604,82.536,104.9]
[1773017336864,0.03504403,82.589,82.556,12.11298997]
[1773017337065,0.03504403,82.589,82.47,48.60199221]
[1773017337066,0.03504403,82.579,82.523,4.82477569]
[1773017337247,0.03504403,82.588,82.534,1.22896005]
[1773017337766,0.03337103,82.569,82.534,1.22896005]
[1773017339291,0.03337103,82.569,82.536,1.22896005]
[1773017339470,0.03337103,82.569,82.536,1.37112162]
[1773017339671,0.03337103,82.569,82.536,1.51328319]
[1773017341365,0.03337103,82.569,82.538,1.22896005]
[1773017341552,12.08001297,82.58,82.538,1.22896005]
[1773017342159,0.03234067,82.579,82.538,1.22896005]
[1773017342360,0.03234067,82.579,82.538,1.51328319]
[1773017343849,0.03234067,82.579,82.54,1.23596446]
[1773017344050,0.03234067,82.579,82.54,1.5202876]
[1773017344653,0.03234067,82.579,82.539,42.4041968]
[1773017344654,0.0316208,82.569,82.539,12.1154848]
[1773017345058,0.0316208,82.569,82.54,1.23596446]
[1773017346871,0.03073312,82.578,82.542,1.22838887]
[1773017347255,0.03073312,82.589,82.542,1.51271201]
[1773017347456,12.08001297,82.59,82.542,1.51271201]
[1773017347775,0.77399998,82.597,82.549,1.22838887]
[1773017347959,0.03052237,82.605,82.555,1.51271201]
[1773017348159,0.03052237,82.605,82.559,1.22838887]
[1773017348983,1e-08,82.62,82.562,1.22838887]
[1773017348984,0.03029366,82.598,82.562,1.22838887]
[1773017352070,0.02807052,82.589,82.47,0.1]
[1773017352271,12.08001297,82.56,82.533,1.22838887]
[1773017352477,0.02807052,82.569,82.533,1.22838887]
[1773017354299,12.11072421,82.572,82.535,1.37055044]
[1773017354476,12.08001297,82.57,82.535,1.51271201]
[1773017354779,12.11004293,82.577,82.535,1.51271201]
[1773017354967,12.08001297,82.57,82.535,1.51271201]
[1773017355285,12.08001297,82.59,82.535,1.51271201]
[1773017355576,3.69383402,82.612,82.535,1.51271201]
[1773017355577,12.08001297,82.57,82.535,1.51271201]
[1773017355882,0.02244713,82.569,82.535,1.22838887]
[1773017356174,0.02244713,82.568,82.536,12.11592517]
[1773017356477,0.02244713,82.568,82.524,30.29413429]
[1773017356478,12.08001297,82.55,82.527,1.22838887]
[1773017356781,0.02244713,82.559,82.528,12.11709965]
[1773017357276,0.02075044,82.568,82.529,1.22838887]
[1773017357878,12.08001297,82.58,82.529,1.51271201]
[1773017358080,12.10961624,82.579,82.529,1.51271201]
[1773017359566,12.10961624,82.579,82.531,1.51271201]
[1773017359773,12.08001297,82.6,82.539,4.82477569]
[1773017359987,12.08001297,82.61,82.554,1.22838887]
[1773017360282,12.8658182,82.599,82.554,1.22838887]
[1773017360869,0.759,82.599,82.554,1.22838887]
[1773017361810,0.759,82.599,82.53,102.99285106]
[1773017361811,12.08001297,82.56,82.528,1.22838887]
[1773017363465,102.90806071,82.598,82.507,0.14216157]
[1773017363466,12.08001297,82.54,82.508,13.34842571]
[1773017363664,0.28432314,82.574,82.43,0.1]
[1773017363665,12.08001297,82.53,82.492,1.22838887]
[1773017363868,12.08001297,82.52,82.483,1.22838887]
[1773017364568,12.08001297,82.52,82.491,12.12253457]
[1773017364867,12.08001297,82.52,82.48,0.1]
[1773017365180,12.08001297,82.52,82.484,1.22838887]
[1773017365776,12.11842121,82.519,82.486,1.22838887]
[1773017368489,12.11842121,82.519,82.487,12.12312243]
[1773017369166,12.09050689,82.52,82.488,1.22838887]
[1773017369572,24.20879056,82.52,82.488,1.22838887]
[1773017369993,12.09050689,82.53,82.488,1.22838887]
[1773017370583,12.09050689,82.53,82.48,0.1]
[1773017370584,12.09050689,82.54,82.493,4.82477569]
[1773017370785,12.09050689,82.54,82.494,1.22838887]
[1773017372480,12.11460415,82.545,82.495,42.42681374]
[1773017372697,12.09050689,82.54,82.497,1.22838887]
[1773017374782,12.09050689,82.54,82.499,1.51271201]
[1773017376091,12.09050689,82.55,82.499,1.51271201]
[1773017376295,12.11409194,82.549,82.499,1.51271201]
[1773017377494,12.09050689,82.54,82.501,1.51271201]
[1773017377695,12.09050689,82.54,82.501,1.22838887]
[1773017378795,12.09050689,82.53,82.501,1.22838887]
[1773017380698,12.09050689,82.53,82.502,12.12091828]
[1773017380903,12.09050689,82.53,82.503,1.22838887]
[1773017381807,12.09050689,82.52,82.494,1.22838887]
[1773017385306,12.11842121,82.519,82.495,12.12194678]
[1773017385501,12.09050689,82.52,82.495,13.35033565]
[1773017386403,12.11842121,82.519,82.495,13.35033565]
[1773017387111,12.09050689,82.52,82.496,1.22838887]
[1773017387411,12.09050689,82.53,82.497,13.35004177]
[1773017388694,12.09050689,82.54,82.498,1.22838887]
[1773017388896,12.09050689,82.53,82.498,1.22838887]
[1773017389803,12.09050689,82.52,82.495,12.12193269]
[1773017390828,12.09050689,82.52,82.492,12.12238762]
[1773017391008,12.09050689,82.52,82.492,13.35077649]
[1773017391314,12.09050689,82.52,82.493,1.22838887]
[1773017391897,12.09050689,82.53,82.495,1.22838887]
[1773017392113,12.09050689,82.53,82.495,1.51271201]
[1773017392414,12.09050689,82.54,82.495,1.51271201]
[1773017392805,12.1154848,82.539,82.497,1.22838887]
[1773017393793,12.09050689,82.54,82.497,1.22838887]
[1773017393996,12.1154848,82.539,82.497,1.22838887]
[1773017395000,12.1154848,82.539,82.499,1.22838887]
[1773017395312,12.09050689,82.53,82.499,1.22838887]
[1773017395493,12.09050689,82.53,82.498,13.34989484]
[1773017395892,12.09050689,82.53,82.499,1.22838887]
[1773017396619,12.11466043,82.545,82.499,1.51271201]
[1773017396819,12.09050689,82.55,82.499,1.51271201]
[1773017397018,12.11401712,82.549,82.499,1.51271201]
[1773017397607,12.09050689,82.55,82.502,1.22838887]
[1773017397608,4.51053856,82.55,82.502,1.22838887]
[1773017398213,4.51053856,82.54,82.502,1.22838887]
[1773017398516,4.51053856,82.53,82.501,1.22838887]
[1773017400607,4.51053856,82.53,82.503,1.22838887]
[1773017401117,4.51053856,82.53,82.502,12.12091828]
[1773017402319,4.51053856,82.53,82.503,1.22838887]
[1773017403203,12.11695282,82.529,82.504,12.12062445]
[1773017404125,12.11695282,82.529,82.505,1.22838887]
[1773017404624,4.51053856,82.53,82.505,1.22838887]
[1773017405408,4.51053856,82.53,82.507,1.22838887]
[1773017405611,4.51053856,82.54,82.507,1.22838887]
[1773017405810,0.759,82.555,82.507,1.51271201]
[1773017406033,12.10961624,82.579,82.518,4.82477569]
[1773017406204,12.10961624,82.579,82.525,1.22838887]
[1773017407010,4.51053856,82.58,82.525,1.22838887]
[1773017407205,4.51053856,82.58,82.534,4.82477569]
[1773017407526,4.51053856,82.58,82.537,1.22838887]
[1773017407726,7.55481356,82.593,82.545,1.22838887]
[1773017408027,7.55481356,82.593,82.555,1.22838887]
[1773017408236,12.10368548,82.62,82.553,1.10358211]
[1773017408435,4.51053857,82.62,82.565,1.10358211]
[1773017408806,1e-08,82.62,82.573,4.82477569]
[1773017409029,1e-08,82.62,82.567,0.28432314]
[1773017409030,0.44620635,82.619,82.574,1.10358211]
[1773017409421,1e-08,82.62,82.577,1.10358211]
[1773017409809,1e-08,82.62,82.576,0.28432314]
[1773017409810,1e-08,82.62,82.585,1.10358211]
[1773017411627,1e-08,82.62,82.594,1.24574368]
[1773017411822,1e-08,82.62,82.594,1.10358211]
[1773017413530,1e-08,82.62,82.595,12.10727041]
[1773017413721,1e-08,82.62,82.597,1.10358211]
[1773017415821,1e-08,82.62,82.598,12.10683067]
[1773017416135,1e-08,82.62,82.576,4.82477569]
[1773017416136,0.43659118,82.609,82.565,1.10358211]
[1773017416336,0.43659118,82.599,82.552,1.10358211]
[1773017416543,1e-08,82.62,82.555,1.10358211]
[1773017416544,12.059341,82.61,82.555,1.10358211]
[1773017416832,0.43547687,82.599,82.555,1.10358211]
[1773017417416,12.059341,82.59,82.555,1.10358211]
[1773017418129,12.059341,82.59,82.557,1.10358211]
[1773017419147,12.059341,82.61,82.558,1.10358211]
[1773017419438,12.059341,82.6,82.56,1.10358211]
[1773017419734,12.059341,82.6,82.562,1.38790525]
[1773017419940,0.43327848,82.607,82.564,1.10358211]
[1773017420146,0.4322029,82.589,82.56,12.11225957]
[1773017420527,0.4322029,82.589,82.561,1.10358211]
[1773017421040,12.059341,82.59,82.561,1.10358211]
[1773017421242,0.43114065,82.589,82.56,12.11225957]
[1773017421735,0.43114065,82.589,82.56,1.10358211]
[1773017422039,0.43009255,82.606,82.56,1.10358211]
[1773017422241,12.059341,82.6,82.56,1.10358211]
[1773017424136,12.059341,82.6,82.561,42.39289737]
[1773017424341,12.10580473,82.605,82.563,1.24574368]
[1773017424539,12.059341,82.61,82.563,1.24574368]
[1773017424540,24.16454898,82.61,82.563,1.24574368]
[1773017425042,1e-08,82.62,82.575,1.10358211]
[1773017425251,12.059341,82.61,82.578,1.10358211]
[1773017425453,0.42703326,82.609,82.578,1.10358211]
[1773017425623,12.059341,82.6,82.578,1.10358211]
[1773017425825,0.42703326,82.609,82.563,1.10358211]
[1773017426355,0.42603216,82.607,82.566,1.10358211]
[1773017426642,12.48437108,82.6,82.566,1.10358211]
[1773017427149,12.10536509,82.608,82.559,12.11254981]
[1773017427150,0.42503008,82.589,82.559,12.11254981]
[1773017427323,0.42503008,82.589,82.56,1.10358211]
[1773017427529,0.42503008,82.597,82.56,1.10358211]
[1773017428345,12.059341,82.59,82.562,1.10358211]
[1773017428543,12.10712383,82.596,82.562,1.10358211]
[1773017428929,0.4240382,82.597,82.562,1.10358211]
[1773017429328,12.53102266,82.597,82.562,1.10358211]
[1773017429531,0.42307614,82.605,82.564,1.10358211]
[1773017429727,0.42307614,82.605,82.565,1.38790525]
[1773017429933,12.10521855,82.609,82.567,1.10358211]
[1773017430642,12.10521855,82.609,82.569,1.10358211]
[1773017430843,12.06463906,82.6,82.569,1.10358211]
[1773017431043,12.06463906,82.59,82.564,12.11180501]
[1773017431545,4.5060598,82.59,82.564,12.11180501]
[1773017432134,16.61411679,82.59,82.564,12.11180501]
[1773017432534,4.5060598,82.59,82.565,1.10358211]
[1773017432741,12.10814999,82.589,82.565,1.10358211]
[1773017433251,4.5060598,82.59,82.565,1.10358211]
[1773017433749,0.42115329,82.592,82.565,1.10358211]
[1773017434526,12.10739881,82.595,82.565,1.10358211]
[1773017434733,0.41664174,82.598,82.567,1.07660493]
[1773017437358,12.1066841,82.599,82.569,1.07660493]
[1773017438330,0.41404579,82.598,82.57,12.11093617]
[1773017438535,0.41404579,82.598,82.569,1.07660493]
[1773017438738,4.5060598,82.59,82.569,1.07660493]
[1773017440347,4.5060598,82.59,82.559,30.28100823]
[1773017440348,12.1066841,82.599,82.571,1.07660493]
[1773017440542,4.5060598,82.59,82.564,1.07660493]
[1773017440748,4.5060598,82.59,82.568,1.07660493]
[1773017441544,0.41154037,82.579,82.533,1.07660493]
[1773017441753,0.41154037,82.579,82.535,1.07660493]
[1773017442049,0.41154037,82.579,82.537,1.07660493]
[1773017442540,0.41072672,82.577,82.539,1.07660493]
[1773017446255,12.10791342,82.591,82.544,0.28432314]
[1773017446551,12.10791342,82.591,82.546,1.2187665]
[1773017446747,12.10791342,82.591,82.547,1.07660493]
[1773017447456,12.10791342,82.591,82.55,1.07660493]
[1773017448139,0.40677815,82.595,82.55,1.07660493]
[1773017448656,4.5060598,82.59,82.55,1.07660493]
[1773017449962,4.5060598,82.59,82.554,1.07660493]
[1773017450339,0.40449999,82.589,82.555,1.07660493]
[1773017450656,0.40449999,82.579,82.552,1.07660493]
[1773017452662,0.40449999,82.579,82.553,12.11343016]
[1773017452850,0.40449999,82.579,82.553,13.19003509]
[1773017453443,0.40449999,82.579,82.554,1.07660493]
[1773017453650,12.51050858,82.589,82.554,1.07660493]
[1773017453847,0.4016076,82.588,82.554,1.07660493]
[1773017454959,0.40090529,82.579,82.555,12.11313669]
[1773017455455,0.40090529,82.586,82.555,13.18974162]
[1773017455639,0.40090529,82.586,82.556,1.07660493]
[1773017457250,0.3995428,82.584,82.558,1.07660493]
[1773017457652,0.39885275,82.589,82.558,1.07660493]
[1773017457847,0.39885275,82.585,82.558,1.07660493]
[1773017458463,0.39885275,82.579,82.551,12.11360034]
[1773017460071,12.10976289,82.578,82.551,12.11360034]
[1773017460271,12.10976289,82.578,82.526,4.82477569]
[1773017460272,0.39752495,82.569,82.538,12.11558514]
[1773017460574,0.39752495,82.569,82.539,1.07660493]
[1773017460866,0.39687201,82.577,82.539,1.07660493]
[1773017461071,0.39687201,82.569,82.539,1.07660493]
[1773017462148,0.39687201,82.569,82.541,1.07660493]
[1773017463069,65.03906083,82.6,82.515,1.07707991]
[1773017463070,0.39495792,82.559,82.515,1.07707991]
[1773017463366,0.39495792,82.559,82.503,12.12077136]
[1773017463367,0.39495792,82.539,82.504,1.07707991]
[1773017463761,4.90039599,82.53,82.504,1.07707991]
[1773017463962,4.5060598,82.52,82.496,1.07707991]
[1773017464162,30.29219967,82.53,82.492,1.07707991]
[1773017464377,0.39433619,82.527,82.492,1.07707991]
[1773017464882,4.5060598,82.52,82.492,1.07707991]
[1773017465176,0.39433619,82.527,82.492,1.07707991]
[1773017466279,12.51051984,82.526,82.494,1.07707991]
[1773017466575,0.39312654,82.525,82.494,1.07707991]
[1773017467058,12.11695282,82.529,82.494,1.07707991]
[1773017467249,0.39191605,82.529,82.493,12.12224067]
[1773017467454,4.5060598,82.52,82.494,1.14133499]
[1773017467654,4.5060598,82.54,82.494,0.92565813]
[1773017467854,16.62149985,82.54,82.494,0.92565813]
[1773017468073,4.5060598,82.54,82.494,0.92565813]
[1773017468274,0.89171581,82.549,82.496,0.28432314]
[1773017468460,4.5060598,82.57,82.504,4.82477569]
[1773017468659,4.5060598,82.6,82.509,0.28432314]
[1773017468660,8.45602001,82.572,82.509,0.28432314]
[1773017468982,0.89150075,82.571,82.516,0.28432314]
[1773017469368,7.56451926,82.572,82.516,5.10909883]
[1773017469569,7.56451926,82.572,82.526,3.69383402]
[1773017469771,8.45582267,82.572,82.534,1.14133499]
[1773017470078,0.89130341,82.559,82.518,1.14133499]
[1773017470275,0.89130341,82.559,82.52,1.42565813]
[1773017470453,0.89130341,82.557,82.52,1.42565813]
[1773017470977,0.891099,82.569,82.525,1.14133499]
[1773017471884,0.89016102,82.568,82.525,1.14133499]
[1773017472585,1.08907057,82.566,82.526,12.1173933]
[1773017473168,1.08907057,82.566,82.526,42.41087656]
[1773017473972,1.08907057,82.566,82.526,12.1173933]
[1773017474175,1.08907057,82.566,82.526,42.41087656]
[1773017474571,1.08907057,82.566,82.506,4.82477569]
[1773017474572,1.08907057,82.566,82.529,1.14133499]
[1773017474968,12.11137621,82.567,82.529,1.14133499]
[1773017474969,1.08907057,82.564,82.529,1.14133499]
[1773017475963,4.5060598,82.56,82.508,30.30002615]
[1773017476181,1.08907057,82.559,82.509,0.28432314]
[1773017477468,1.08907057,82.559,82.511,5.10909883]
[1773017477672,1.08907057,82.566,82.511,5.10909883]
[1773017477984,1.08907057,82.566,82.515,1.14133499]
[1773017478869,1.08907057,82.566,82.517,1.14133499]
[1773017479183,1.08907057,82.564,82.517,1.14133499]
[1773017479765,1.08907057,82.559,82.517,1.14133499]
[1773017480581,1.08907057,82.549,82.517,1.14133499]
[1773017480986,1.08907057,82.549,82.518,12.11856806]
[1773017482063,1.08907057,82.549,82.518,1.14133499]
[1773017483387,1.08907057,82.569,82.518,1.14133499]
[1773017485296,1.08907057,82.567,82.52,1.42565813]
[1773017486194,1.08907057,82.559,82.52,1.42565813]
[1773017487191,1.08907057,82.557,82.522,0.28432314]
[1773017487371,1.08907057,82.557,82.522,1.42565813]
[1773017487999,1.08907057,82.565,82.522,1.42565813]
[1773017489311,1.08907057,82.585,82.534,1.14133499]
[1773017489598,1.08907057,82.585,82.524,0.14216157]
[1773017489599,1.08907057,82.593,82.544,1.14133499]
[1773017489894,1.08907057,82.609,82.554,1.14133499]
[1773017490086,1.08907057,82.599,82.554,1.14133499]
[1773017491395,1.08907057,82.589,82.556,1.42565813]
[1773017492876,1.08907057,82.589,82.557,12.11284324]
[1773017493093,1.08907057,82.589,82.558,1.12386429]
[1773017493679,1.08331995,82.587,82.558,1.12386429]
[1773017493879,1.08331995,82.569,82.526,1.12386429]
[1773017494190,1.08331995,82.569,82.526,1.40818743]
[1773017494402,1.08331995,82.569,82.528,1.12386429]
[1773017494784,1.08331995,82.567,82.53,1.40818743]
[1773017495004,1.08331995,82.567,82.53,0.90818743]
[1773017497207,1.08331995,82.565,82.532,1.40818743]
[1773017497406,1.08331995,82.559,82.532,1.12386429]
[1773017501126,1.08331995,82.559,82.505,65.42684778]
[1773017501127,4.5055594,82.58,82.534,1.12386429]
[1773017501302,1.08331995,82.582,82.536,1.12386429]
[1773017501605,1.08331995,82.582,82.538,1.12386429]
[1773017502483,1.08331995,82.582,82.538,1.40818743]
[1773017502684,1.08331995,82.582,82.54,1.40818743]
[1773017502887,1.08331995,82.582,82.542,1.12386429]
[1773017503081,1.08331995,82.582,82.544,1.12386429]
[1773017503285,1.08331995,82.579,82.544,1.12386429]
[1773017504502,12.10839208,82.588,82.544,1.12386429]
[1773017504710,1.08331995,82.605,82.554,1.12386429]
[1773017505505,1.08331995,82.603,82.557,1.12386429]
[1773017505801,1.08331995,82.599,82.557,1.12386429]
[1773017509209,1.08331995,82.599,82.56,1.12386429]
[1773017511407,1.08331995,82.599,82.562,1.12386429]
[1773017511595,1.08331995,82.599,82.563,1.12386429]
[1773017512094,1.08331995,82.597,82.563,1.12386429]
[1773017513001,1.08331995,82.597,82.561,42.39289737]
[1773017513312,1.08331995,82.589,82.561,42.39289737]
[1773017513805,1.08331995,82.589,82.561,1.12386429]
[1773017514508,1.08331995,82.587,82.561,1.12386429]
[1773017516911,1.08331995,82.587,82.562,13.23597397]
[1773017517111,12.10858983,82.586,82.562,13.23597397]
[1773017517292,1.08331995,82.585,82.562,13.23597397]
[1773017519909,12.10805249,82.59,82.563,1.12386429]
[1773017520115,1.08331995,82.592,82.563,1.12386429]
[1773017520706,1.08331995,82.599,82.563,1.12386429]
[1773017520910,54.5,82.662,82.575,0.28432314]
[1773017520911,1.08331995,82.627,82.575,0.28432314]
[1773017521211,1.08331995,82.627,82.576,1.12386429]
[1773017521712,1e-08,82.63,82.588,8.51860971]
[1773017521905,1.08331995,82.628,82.589,0.28432314]
[1773017522098,1.08331995,82.626,82.59,1.12386429]
[1773017523514,4.50555941,82.63,82.59,1.12386429]
[1773017523515,1e-08,82.63,82.59,1.12386429]
[1773017523918,1.13752817,82.629,82.59,1.12386429]
[1773017524322,1.13752817,82.628,82.592,1.43732626]
[1773017525707,1.13752817,82.627,82.592,1.43732626]
[1773017526619,1.13752817,82.627,82.594,1.15300312]
[1773017527913,1.1349753,82.625,82.593,12.10756359]
[1773017528115,1.1349753,82.619,82.593,12.10756359]
[1773017528315,1.1349753,82.619,82.589,12.10808963]
[1773017528724,1.1349753,82.617,82.589,12.10808963]
[1773017530809,1.1349753,82.617,82.589,1.13789671]
[1773017531130,1.1349753,82.616,82.583,1.13789671]
[1773017532810,4.50555941,82.63,82.584,42.38109076]
[1773017533013,1e-08,82.63,82.585,1.13789671]
[1773017533211,12.10228854,82.629,82.585,1.13789671]
[1773017534029,1.1349753,82.628,82.585,1.13789671]
[1773017534461,1.1349753,82.646,82.584,42.38109076]
[1773017534633,0.2,82.68,82.595,4.82477569]
[1773017534807,12.09789617,82.659,82.606,1.13789671]
[1773017535125,12.09789617,82.659,82.614,1.13789671]
[1773017536632,0.96652303,82.658,82.614,1.13789671]
[1773017537221,0.96677325,82.656,82.616,1.13789671]
[1773017537417,0.2,82.67,82.617,1.13789671]
[1773017537629,0.2,82.67,82.616,0.28432314]